bitfinex-derivatives/quotes_BNBF0:USTF0_20250609
["timestamp","ask_amount","ask_price","bid_price","bid_amount"]
[1749504279765,2.66245925,664.69,663.99,1.48501911]
[1749504280061,0.49672141,664.68,664.0,1.48501911]
[1749504280561,0.49672141,664.68,663.35,3.77007376]
[1749504280562,1.596,664.67,663.99,1.48501911]
[1749504280765,2.76078164,664.67,663.98,1.48501911]
[1749504281065,2.66274247,664.66,663.98,1.48501911]
[1749504281261,0.4965712,664.65,663.98,1.48501911]
[1749504281661,2.16524727,664.65,663.98,1.48501911]
[1749504281960,1.16584974,664.64,663.98,1.48501911]
[1749504282166,1.49769897,664.66,663.98,1.48501911]
[1749504282362,2.16671941,664.66,663.98,1.48501911]
[1749504282663,2.66367054,664.65,663.96,1.48501911]
[1749504282861,2.66367918,664.64,663.96,1.48501911]
[1749504283165,2.66367899,664.63,663.96,1.48501911]
[1749504283463,2.6636824,664.62,663.96,1.48501911]
[1749504283661,1.00099856,664.61,663.96,1.48501911]
[1749504283865,1.16585229,664.62,663.95,1.48501911]
[1749504284161,1.00093062,664.62,663.91,1.48501911]
[1749504284362,1.271,664.63,663.91,1.48501911]
[1749504287168,2.76869694,664.63,663.91,1.48501911]
[1749504287466,2.16643337,664.62,663.91,1.48501911]
[1749504287665,2.16643204,664.61,663.9,1.48501911]
[1749504287866,2.6630903,664.6,663.91,1.48501911]
[1749504288064,2.6630903,664.59,663.91,1.48501911]
[1749504288269,2.6630903,664.58,663.92,1.48501911]
[1749504288468,2.66309098,664.57,663.91,1.48501911]
[1749504288769,1.66214197,664.56,663.91,1.48501911]
[1749504288967,2.16635097,664.62,663.91,1.48501911]
[1749504289166,2.16635097,664.61,663.91,1.48501911]
[1749504289370,2.16635097,664.6,663.92,1.48501911]
[1749504289669,2.16634833,664.59,663.92,1.48501911]
[1749504289866,2.66300769,664.58,663.92,1.48501911]
[1749504290064,0.66,664.61,663.92,1.48501911]
[1749504290065,1.66214054,664.57,663.92,1.48501911]
[1749504290265,2.66246457,664.6,663.92,1.48501911]
[1749504290470,1.49717579,664.59,663.92,1.48501911]
[1749504290671,0.49647387,664.59,663.92,1.48501911]
[1749504290866,0.66,664.61,663.92,1.48501911]
[1749504291066,3.3219986,664.61,663.92,1.48501911]
[1749504291270,2.16552024,664.6,663.92,1.48501911]
[1749504291470,2.6619945,664.59,663.92,1.48501911]
[1749504291771,1.66131408,664.58,663.92,1.48501911]
[1749504291969,2.66188633,664.6,663.92,1.48501911]
[1749504292167,2.66188633,664.6,663.95,1.48501911]
[1749504292168,0.49647377,664.59,663.95,1.48501911]
[1749504292368,1.16484031,664.6,663.96,1.48501911]
[1749504292567,0.66,664.61,663.96,1.48501911]
[1749504292773,1.15640074,664.61,663.96,1.48501911]
[1749504293072,0.66,664.61,663.96,1.48501911]
[1749504293268,3.32184571,664.61,663.96,1.48501911]
[1749504293468,1.66111318,664.6,663.96,1.48501911]
[1749504293668,1.66111318,664.6,663.95,1.48501911]
[1749504293874,0.49639931,664.6,663.95,1.48501911]
[1749504294069,0.66,664.61,663.95,1.48501911]
[1749504294370,1.82470608,664.61,664.01,1.48501911]
[1749504294576,0.66,664.61,664.01,1.48501911]
[1749504294970,0.66,664.61,664.02,1.48501911]
[1749504295474,1.82470337,664.61,664.01,1.48501911]
[1749504295675,0.66,664.61,664.01,1.48501911]
[1749504295870,1.82492635,664.61,664.02,1.48501911]
[1749504296069,0.66,664.61,664.02,1.48501911]
[1749504298277,1.672,664.6,664.03,1.48501911]
[1749504298471,3.33341286,664.6,664.03,1.48501911]
[1749504298676,1.16499736,664.59,664.02,1.48501911]
[1749504298872,2.83699736,664.6,664.02,1.48501911]
[1749504299376,1.672,664.6,664.02,1.48501911]
[1749504299573,2.1684431,664.6,664.01,1.48501911]
[1749504299772,1.672,664.6,664.01,1.48501911]
[1749504299973,1.672,664.6,664.0,1.48501911]
[1749504300172,1.672,664.6,663.99,1.48501911]
[1749504300677,4.33434767,664.6,663.84,1.48501911]
[1749504300874,1.00096945,664.59,663.84,1.48501911]
[1749504301074,1.16547911,664.59,663.84,1.48501911]
[1749504301373,1.00258637,664.59,663.83,1.48501911]
[1749504301572,0.49665378,664.59,663.83,1.48501911]
[1749504301777,2.66495301,664.59,663.83,1.48501911]
[1749504302074,1.16560845,664.58,663.84,1.48501911]
[1749504302278,2.16830174,664.59,663.84,1.48501911]
[1749504302581,1.1656084,664.58,663.84,1.48501911]
[1749504302776,2.16830169,664.59,663.84,1.48501911]
[1749504302988,1.00339956,664.58,663.84,1.48501911]
[1749504303175,1.1656084,664.58,663.84,1.48501911]
[1749504303379,2.16900742,664.59,663.84,1.48501911]
[1749504303575,2.16900689,664.58,663.84,1.48501911]
[1749504303879,1.16560787,664.57,663.84,1.48501911]
[1749504304077,1.50016312,664.59,663.84,1.48501911]
[1749504304275,2.66577099,664.59,663.84,1.48501911]
[1749504304477,2.16904568,664.59,663.84,1.48501911]
[1749504304674,1.16732881,664.58,663.84,1.48501911]
[1749504304879,0.49690148,664.58,663.84,1.48501911]
[1749504305077,0.49690205,664.58,663.84,1.48501911]
[1749504305281,2.66781824,664.59,663.84,1.48501911]
[1749504305579,2.17091619,664.59,663.84,1.48501911]
[1749504305778,0.49692397,664.58,663.84,1.48501911]
[1749504306479,1.16786576,664.58,663.84,1.48501911]
[1749504306686,1.16786662,664.58,663.84,1.48501911]
[1749504306882,0.49666904,664.59,663.84,1.48501911]
[1749504307080,1.16786338,664.59,663.84,1.48501911]
[1749504307280,1.672,664.6,663.84,1.48501911]
[1749504307484,2.67563073,664.6,663.84,1.48501911]
[1749504307689,0.49666651,664.59,663.85,1.48501911]
[1749504307883,4.23616086,664.59,663.85,1.48501911]
[1749504308188,2.17150051,664.58,663.85,1.48501911]
[1749504308384,1.568,664.59,663.85,1.48501911]
[1749504308588,2.57184279,664.59,663.85,1.48501911]
[1749504308785,0.4967715,664.58,663.85,1.48501911]
[1749504308987,4.23733718,664.59,663.85,1.48501911]
[1749504309185,2.66932417,664.58,663.85,1.48501911]
[1749504309386,2.17255615,664.58,663.85,1.48501911]
[1749504309584,2.17255615,664.58,663.91,1.48501911]
[1749504309783,2.17255615,664.58,663.92,1.48501911]
[1749504310088,1.568,664.59,663.91,1.48501911]
[1749504310287,4.23801349,664.59,663.91,1.48501911]
[1749504310488,2.67001601,664.58,663.97,1.48501911]
[1749504310682,0.49688618,664.57,663.98,1.48501911]
[1749504310883,2.67012652,664.58,663.98,1.48501911]
[1749504311090,0.49688618,664.57,663.97,1.48501911]
[1749504311484,0.49688618,664.57,663.96,1.48501911]
[1749504311790,0.49690804,664.57,663.97,1.48501911]
[1749504312084,1.16854434,664.58,663.13,0.26203734]
[1749504312085,0.66,664.56,664.01,1.48501911]
[1749504312790,0.66,664.56,664.02,1.48501911]
[1749504315186,0.66,664.56,664.05,1.48501911]
[1749504315591,0.66,664.56,664.0,1.48501911]
[1749504317790,0.66,664.56,664.01,1.48501911]
[1749504319694,0.66,664.56,664.02,1.48501911]
[1749504320890,0.66,664.56,664.03,1.48501911]
[1749504321091,0.66,664.56,664.05,1.48501911]
[1749504323394,0.66,664.56,664.06,1.48501911]
[1749504325396,0.66,664.56,664.13,1.48501911]
[1749504328197,0.66,664.56,664.11,1.48501911]
[1749504329799,1.779,664.55,664.11,1.48501911]
[1749504330401,2.94956255,664.55,664.11,1.48501911]
[1749504330602,1.743,664.54,664.11,1.48501911]
[1749504330997,1.743,664.54,664.13,1.48501911]
[1749504331201,2.91254284,664.54,664.13,1.48501911]
[1749504331502,1.743,664.54,664.05,1.48501911]
[1749504331797,2.91252815,664.54,664.05,1.48501911]
[1749504332396,1.743,664.54,664.05,1.48501911]
[1749504332598,2.91253601,664.54,664.05,1.48501911]
[1749504332901,1.743,664.54,664.05,1.48501911]
[1749504333098,2.91253668,664.54,664.05,1.48501911]
[1749504333503,1.743,664.54,664.05,1.48501911]
[1749504333702,2.91253601,664.54,664.05,1.48501911]
[1749504334005,1.743,664.54,664.05,1.48501911]
[1749504334202,2.91253473,664.54,664.05,1.48501911]
[1749504334505,1.743,664.54,664.05,1.48501911]
[1749504334903,2.91253087,664.54,664.05,1.48501911]
[1749504335806,2.28470615,664.53,664.05,1.48501911]
[1749504336005,2.28470615,664.53,663.25,3.77007376]
[1749504336006,3.88470615,664.53,664.04,1.48501911]
[1749504336302,2.715,664.53,664.04,1.48501911]
[1749504338103,2.715,664.53,664.06,1.48501911]
[1749504338603,2.715,664.53,664.05,1.48501911]
[1749504338802,2.715,664.53,663.28,3.77007376]
[1749504338803,2.715,664.53,664.06,1.48501911]
[1749504339206,2.715,664.53,664.05,1.48501911]
[1749504339604,1.16908086,664.52,664.05,1.48501911]
[1749504339903,2.715,664.53,664.06,1.48501911]
[1749504340208,1.16908781,664.52,664.01,1.48501911]
[1749504340405,1.16908781,664.52,663.99,1.48501911]
[1749504340604,1.16905523,664.52,663.99,1.48501911]
[1749504340809,1.16905525,664.52,664.0,1.48501911]
[1749504341008,2.715,664.53,664.0,1.48501911]
[1749504341408,1.16910172,664.52,664.03,1.48501911]
[1749504341809,1.16914344,664.52,664.03,1.48501911]
[1749504342505,1.16910666,664.52,664.03,1.48501911]
[1749504342810,1.16910743,664.52,664.03,1.48501911]
[1749504343109,1.571,664.51,664.03,1.48501911]
[1749504343910,1.571,664.51,664.04,1.48501911]
[1749504344110,1.571,664.51,664.02,1.48501911]
[1749504344311,0.66,664.5,664.02,1.48501911]
[1749504345112,1.82915189,664.5,664.02,1.48501911]
[1749504345311,0.66,664.5,664.02,1.48501911]
[1749504346309,1.82915808,664.5,664.01,1.48501911]
[1749504346814,1.83003113,664.5,664.01,1.48501911]
[1749504347116,1.83003108,664.5,664.01,1.48501911]
[1749504347510,0.66,664.5,664.01,1.48501911]
[1749504348411,1.83003314,664.5,664.01,1.48501911]
[1749504348713,0.66,664.5,664.01,1.48501911]
[1749504348915,0.66,664.5,664.02,1.48501911]
[1749504349309,0.66,664.5,664.01,1.48501911]
[1749504349812,1.83003236,664.5,664.02,1.48501911]
[1749504350017,1.83003236,664.5,664.07,1.48501911]
[1749504350216,0.66,664.5,664.07,1.48501911]
[1749504350517,1.83020392,664.5,664.08,1.48501911]
[1749504350713,1.83020319,664.5,664.08,1.48501911]
[1749504352020,1.83066002,664.5,663.96,1.48501911]
[1749504352320,0.66,664.5,663.96,1.48501911]
[1749504352916,1.83067821,664.5,663.96,1.48501911]
[1749504353519,1.83072103,664.5,663.96,1.48501911]
[1749504353718,1.83072102,664.5,663.96,1.48501911]
[1749504353915,0.66,664.5,663.96,1.48501911]
[1749504354216,0.66,664.5,663.95,1.48501911]
[1749504354420,1.83072414,664.5,663.95,1.48501911]
[1749504355220,1.83072414,664.5,663.96,1.48501911]
[1749504355413,1.626,664.49,663.96,1.48501911]
[1749504355617,1.626,664.49,663.97,1.48501911]
[1749504356018,2.79676366,664.49,663.97,1.48501911]
[1749504356720,1.626,664.49,663.97,1.48501911]
[1749504356917,2.79738817,664.49,663.97,1.48501911]
[1749504357220,1.626,664.49,663.97,1.48501911]
[1749504357421,2.79741175,664.49,663.97,1.48501911]
[1749504357619,1.626,664.49,663.97,1.48501911]
[1749504358017,2.79740761,664.49,663.97,1.48501911]
[1749504358620,1.626,664.49,663.97,1.48501911]
[1749504359019,2.79815132,664.49,663.97,1.48501911]
[1749504359223,1.626,664.49,663.97,1.48501911]
[1749504359625,2.79815008,664.49,663.97,1.48501911]
[1749504359823,1.626,664.49,663.97,1.48501911]
[1749504360923,2.79817827,664.49,663.97,1.48501911]
[1749504361120,1.626,664.49,663.97,1.48501911]
[1749504361623,1.371,664.48,663.97,1.48501911]
[1749504361920,1.371,664.48,664.08,1.48501911]
[1749504362723,1.371,664.48,664.07,1.48501911]
[1749504363423,1.293,664.47,664.07,1.48501911]
[1749504363924,1.293,664.47,664.09,1.48501911]
[1749504367123,1.293,664.47,664.01,1.48501911]
[1749504367721,0.66,664.46,664.01,1.48501911]
[1749504368020,0.66,664.46,663.98,1.48501911]
[1749504370722,0.66,664.46,663.99,1.48501911]
[1749504371326,0.66,664.46,664.01,1.48501911]
[1749504371624,0.66,664.46,664.08,1.48501911]
[1749504371826,0.66,664.46,664.1,1.48501911]
[1749504372922,1.129,664.45,664.1,1.48501911]
[1749504373724,1.129,664.45,664.09,1.48501911]
[1749504375526,1.129,664.45,664.08,1.48501911]
[1749504377426,1.129,664.45,664.1,1.48501911]
[1749504380329,1.526,664.44,664.12,1.48501911]
[1749504380626,1.526,664.44,664.11,1.48501911]
[1749504381433,1.526,664.44,664.19,1.48501911]
[1749504381732,1.526,664.44,663.13,0.26203734]
[1749504381733,1.526,664.44,664.22,1.48501911]
[1749504383232,1.526,664.44,664.23,1.48501911]
[1749504385035,1.526,664.44,664.24,1.48501911]
[1749504385836,1.526,664.44,664.23,1.48501911]
[1749504387132,1.526,664.44,664.22,1.48501911]
[1749504389336,1.526,664.44,664.21,1.48501911]
[1749504389536,1.526,664.44,664.19,1.48501911]
[1749504390137,1.526,664.44,664.2,1.48501911]
[1749504390335,1.526,664.44,664.19,1.48501911]
[1749504391233,1.526,664.44,664.2,1.48501911]
[1749504391737,1.526,664.44,664.19,1.48501911]
[1749504393338,1.526,664.44,664.2,1.48501911]
[1749504396935,1.526,664.44,664.21,1.48501911]
[1749504397534,1.526,664.44,664.2,1.48501911]
[1749504397736,1.526,664.44,664.19,1.48501911]
[1749504399136,1.526,664.44,664.17,1.48501911]
[1749504399439,1.526,664.44,664.19,1.48501911]
[1749504399639,1.526,664.44,664.06,2.26204425]
[1749504399640,1.526,664.44,664.18,1.48501911]
[1749504400235,1.129,664.45,664.18,1.48501911]
[1749504401744,1.129,664.45,664.19,1.48501911]
[1749504401944,1.129,664.45,664.18,1.48501911]
[1749504402445,1.718,664.44,664.18,1.48501911]
[1749504402640,1.718,664.44,664.17,1.48501911]
[1749504403047,1.718,664.44,664.05,2.26204425]
[1749504403048,1.718,664.44,664.18,1.48501911]
[1749504404944,1.718,664.44,664.17,1.48501911]
[1749504405149,1.718,664.44,664.18,1.48501911]
[1749504405348,1.718,664.44,664.16,1.48501911]
[1749504405948,1.718,664.44,664.17,1.48501911]
[1749504406652,1.692,664.43,664.16,1.48501911]
[1749504406848,1.692,664.43,664.17,1.48501911]
[1749504407151,1.692,664.43,663.45,3.77007376]
[1749504407152,1.692,664.43,664.16,1.48501911]
[1749504407351,1.692,664.43,664.17,1.48501911]
[1749504407552,1.692,664.43,664.18,1.48501911]
[1749504407752,1.569,664.42,664.17,1.48501911]
[1749504409254,1.569,664.42,664.18,1.48501911]
[1749504409653,1.569,664.42,664.17,1.48501911]
[1749504409854,1.569,664.42,664.18,1.48501911]
[1749504410351,1.569,664.42,664.17,1.48501911]
[1749504411952,1.569,664.42,664.18,1.48501911]
[1749504414061,1.569,664.42,664.3,1.48501911]
[1749504414257,1.569,664.42,664.32,1.48501911]
[1749504414457,1.569,664.42,664.23,1.48501911]
[1749504414658,1.569,664.42,664.3,1.48501911]
[1749504414860,1.569,664.42,664.33,1.48501911]
[1749504415157,1.569,664.42,664.34,1.48501911]
[1749504415361,1.569,664.42,664.35,1.48501911]
[1749504415555,1.569,664.42,664.37,1.48501911]
[1749504415759,1.569,664.42,664.36,1.48501911]
[1749504416259,1.569,664.42,664.38,1.48501911]
[1749504416558,1.569,664.42,664.37,1.48501911]
[1749504416760,1.569,664.42,664.36,1.48501911]
[1749504416959,1.569,664.42,664.39,1.48501911]
[1749504417157,1.569,664.42,664.4,1.48501911]
[1749504417360,1.569,664.42,664.26,2.26204425]
[1749504417560,1.569,664.42,664.4,1.48302965]
[1749504417761,1.569,664.42,664.25,2.26204425]
[1749504418061,1.569,664.42,664.41,1.48301134]
[1749504418361,1.569,664.42,664.26,2.26204425]
[1749504418563,1.569,664.42,664.37,1.48234614]
[1749504419459,1.569,664.42,664.38,1.48234614]
[1749504419658,1.569,664.42,664.4,1.48234614]
[1749504420057,1.569,664.42,664.38,1.48234614]
[1749504420258,1.569,664.42,664.2,2.26204425]
[1749504420259,1.569,664.42,664.4,1.48234614]
[1749504420457,1.569,664.42,663.57,3.77007376]
[1749504420458,1.569,664.42,664.35,1.48234614]
[1749504421261,1.569,664.42,664.36,1.48234614]
[1749504421563,1.569,664.42,664.38,1.48234614]
[1749504421758,1.569,664.42,664.3,2.26204425]
[1749504422061,1.569,664.42,664.32,2.26204425]
[1749504422262,1.569,664.42,664.31,2.26204425]
[1749504422558,1.569,664.42,664.32,2.26204425]
[1749504422762,1.569,664.42,664.36,2.26204425]
[1749504422957,1.569,664.42,664.33,2.26204425]
[1749504423158,1.569,664.42,664.32,2.26204425]
[1749504423358,1.569,664.42,664.32,0.30105973]
[1749504424057,1.569,664.42,664.33,2.21920584]
[1749504424362,1.569,664.42,664.34,0.30105066]
[1749504424662,1.569,664.42,664.34,2.5202565]
[1749504425262,1.569,664.42,664.34,0.30105066]
[1749504426258,1.569,664.42,664.35,1.47845348]
[1749504426458,1.569,664.42,664.36,1.47845348]
[1749504426662,1.569,664.42,664.35,1.47845348]
[1749504426962,1.569,664.42,664.34,0.30105066]
[1749504427664,1.569,664.42,664.35,1.47845348]
[1749504427857,1.569,664.42,664.34,1.77950414]
[1749504428058,1.569,664.42,664.35,1.47845348]
[1749504428364,1.569,664.42,664.38,1.47845348]
[1749504428663,1.569,664.42,664.34,0.30105066]
[1749504428664,1.569,664.42,664.37,1.47845348]
[1749504428963,1.569,664.42,664.38,1.47845348]
[1749504429164,1.569,664.42,664.37,1.47845348]
[1749504429361,1.569,664.42,664.35,1.47845348]
[1749504429562,1.569,664.42,664.36,1.47845348]
[1749504430260,1.569,664.42,664.35,1.47845348]
[1749504430864,1.569,664.42,664.34,0.30105066]
[1749504431564,1.569,664.42,664.34,1.77950414]
[1749504431763,1.569,664.42,664.34,0.30105066]
[1749504433763,1.569,664.42,664.37,1.47845348]
[1749504434062,1.692,664.43,664.35,1.47845348]
[1749504434463,1.692,664.43,664.34,0.30105066]
[1749504435668,1.692,664.43,664.42,1.10843109]
[1749504436170,1.692,664.43,664.34,0.30105066]
[1749504437968,1.692,664.43,664.42,1.10850677]
[1749504438269,1.692,664.43,664.34,0.30105066]
[1749504438670,1.692,664.43,664.42,1.10852297]
[1749504439172,1.692,664.43,664.41,1.10852297]
[1749504439673,1.692,664.43,664.31,1.47845348]
[1749504440268,1.692,664.43,664.3,1.47845348]
[1749504440467,1.692,664.43,664.41,1.10883954]
[1749504440772,1.692,664.43,664.42,1.10883954]
[1749504440969,1.692,664.43,664.41,1.10880669]
[1749504441871,1.692,664.43,664.42,1.10880669]
[1749504442376,1.692,664.43,664.28,1.47845348]
[1749504444071,1.692,664.43,664.42,1.10896356]
[1749504444675,1.692,664.43,664.28,1.47845348]
[1749504445171,1.692,664.43,664.29,1.47845348]
[1749504445578,1.692,664.43,664.42,1.10911078]
[1749504446574,1.692,664.43,664.28,1.47845348]
[1749504447077,1.692,664.43,664.42,1.1091885]
[1749504447277,1.692,664.43,664.29,1.47845348]
[1749504447773,1.692,664.43,664.28,1.47845348]
[1749504448475,1.692,664.43,664.29,1.47845348]
[1749504448979,1.692,664.43,664.3,1.47845348]
[1749504450081,1.692,664.43,664.33,1.47845348]
[1749504450376,1.385,664.42,664.33,1.47845348]
[1749504450780,1.385,664.42,664.31,1.47845348]
[1749504451478,1.385,664.42,664.3,1.47845348]
[1749504451881,1.385,664.42,664.28,1.47845348]
[1749504452680,1.385,664.42,664.29,1.47845348]
[1749504453081,1.385,664.42,664.3,1.47845348]
[1749504453282,1.385,664.42,664.29,1.47845348]
[1749504453577,1.385,664.42,664.16,2.21920584]
[1749504453578,1.385,664.42,664.3,1.47845348]
[1749504454487,1.385,664.42,664.31,1.47845348]
[1749504454980,1.385,664.42,664.32,1.47845348]
[1749504455484,1.385,664.42,662.98,7.39735282]
[1749504455485,1.385,664.42,664.31,1.47845348]
[1749504456185,1.385,664.42,664.28,1.47845348]
[1749504457284,1.385,664.42,664.29,1.47845348]
[1749504458786,1.385,664.42,664.3,1.47845348]
[1749504459485,1.385,664.42,664.31,1.47845348]
[1749504459890,1.385,664.42,664.4,1.11080577]
[1749504460085,1.385,664.42,664.39,1.11080577]
[1749504460689,1.385,664.42,664.4,1.11080577]
[1749504461485,1.385,664.42,664.41,1.11080577]
[1749504462189,1.385,664.42,664.4,1.11080577]
[1749504462389,1.385,664.42,664.41,1.11080577]
[1749504463487,1.385,664.42,664.22,1.47845348]
[1749504464488,1.385,664.42,664.23,1.47845348]
[1749504465091,1.385,664.42,664.24,1.47845348]
[1749504465486,1.385,664.42,664.25,1.47845348]
[1749504466287,1.385,664.42,664.26,1.47845348]
[1749504467590,1.385,664.42,664.27,1.47845348]
[1749504468187,1.512,664.45,664.27,1.47845348]
[1749504469790,1.512,664.45,664.38,1.47845348]
[1749504469989,1.512,664.45,664.39,1.47845348]
[1749504470493,1.512,664.45,664.4,1.47845348]
[1749504471189,1.512,664.45,664.39,1.47845348]
[1749504471490,1.512,664.45,664.4,1.47845348]
[1749504471889,1.512,664.45,664.41,1.47845348]
[1749504472695,1.512,664.45,664.42,1.47845348]
[1749504472995,1.512,664.45,664.43,1.47845348]
[1749504473198,1.512,664.45,664.31,2.21920584]
[1749504473597,1.512,664.45,664.34,2.21920584]
[1749504474400,1.512,664.45,664.32,2.21920584]
[1749504474597,1.512,664.45,664.33,2.21920584]
[1749504474800,1.512,664.45,664.34,2.21920584]
[1749504478904,1.512,664.45,664.32,2.21920584]
[1749504479804,1.512,664.45,663.68,3.69867641]
[1749504479805,1.512,664.45,664.41,2.21920584]
[1749504481200,1.512,664.45,664.44,2.21920584]
[1749504482105,1.512,664.45,664.43,2.21920584]
[1749504482306,1.512,664.45,664.44,2.21920584]
[1749504483002,1.512,664.45,664.43,2.21920584]
[1749504484000,1.342,664.74,664.43,2.21920584]
[1749504484201,1.342,664.74,664.7,1.11404536]
[1749504486306,1.342,664.74,664.71,1.11404536]
[1749504488403,1.342,664.74,664.72,1.11404536]
[1749504488805,1.342,664.74,664.73,1.11404536]
[1749504489708,1.342,664.74,664.72,1.11404536]
[1749504489910,1.342,664.74,664.73,1.11404536]
[1749504490605,1.342,664.74,664.72,1.11404536]
[1749504491407,1.342,664.74,664.73,1.11404536]
[1749504492004,1.342,664.74,664.72,1.11404536]
[1749504494812,1.342,664.74,664.73,1.11404536]
[1749504495606,2.66922768,665.17,664.73,1.11404536]
[1749504495809,2.66923113,665.16,664.73,1.11404536]
[1749504496009,1.66534841,665.15,664.73,1.11404536]
[1749504496211,2.66923101,665.27,664.73,1.11404536]
[1749504496412,1.66534841,665.26,664.75,1.11404536]
[1749504496708,2.66923101,665.26,664.75,1.11404536]
[1749504497011,1.12388993,665.3,664.75,1.11404536]
[1749504497206,1.17212528,665.29,664.75,1.11404536]
[1749504497411,1.1721203,665.28,664.75,1.11404536]
[1749504497607,1.1721203,665.27,664.75,1.11404536]
[1749504497811,1.1721203,665.26,664.75,1.11404536]
[1749504498009,1.1721203,665.27,664.75,1.11404536]
[1749504498310,1.1721203,665.26,664.75,1.11404536]
[1749504498511,1.1721203,665.28,664.75,1.11404536]
[1749504498714,1.17205087,665.27,664.75,1.11404536]
[1749504499008,1.49666087,665.3,664.75,1.11404536]
[1749504499312,1.1720503,665.29,664.75,1.11404536]
[1749504499513,1.1720477,665.28,664.76,1.11404536]
[1749504499810,2.66863996,665.28,664.78,1.11404536]
[1749504500007,1.49658549,665.27,664.79,1.11404536]
[1749504500210,0.49093875,665.27,664.75,1.11404536]
[1749504500711,1.00534616,665.27,664.75,1.11404536]
[1749504500909,2.66983989,665.28,664.75,1.11404536]
[1749504501113,1.00534512,665.27,664.74,1.11404536]
[1749504501314,1.237,665.29,664.74,1.11404536]
[1749504502012,1.237,665.29,664.75,1.11404536]
[1749504502211,1.72787928,665.29,664.75,1.11404536]
[1749504502409,1.237,665.29,664.75,1.11404536]
[1749504502712,1.237,665.29,664.74,1.11404536]
[1749504503212,3.90926824,665.29,664.75,1.11404536]
[1749504503411,2.67226824,665.28,664.75,1.11404536]
[1749504503615,0.49087998,665.27,664.75,1.11404536]
[1749504504312,0.4908372,665.27,664.75,1.11404536]
[1749504504511,1.237,665.29,664.75,1.11404536]
[1749504504916,1.237,665.29,664.74,1.11404536]
[1749504505216,3.91067423,665.29,664.74,1.11404536]
[1749504505417,1.66581474,665.28,664.74,1.11404536]
[1749504505814,2.67386481,665.28,664.74,1.11404536]
[1749504506116,0.49116523,665.27,664.74,1.11404536]
[1749504506411,1.237,665.29,664.74,1.11404536]
[1749504507017,3.91181338,665.29,664.74,1.11404536]
[1749504507216,2.67481338,665.28,664.74,1.11404536]
[1749504507513,0.49116528,665.27,664.74,1.11404536]
[1749504507917,2.18263117,665.27,664.75,1.11404536]
[1749504508114,2.67404201,665.26,664.74,1.11404536]
[1749504508317,2.67404196,665.25,664.74,1.11404536]
[1749504508517,1.237,665.29,664.74,1.11404536]
[1749504508518,2.67404196,665.24,664.74,1.11404536]
[1749504508718,2.67404196,665.23,664.75,1.11404536]
[1749504508915,2.67404196,665.22,664.74,1.11404536]
[1749504509219,2.18262837,665.21,664.74,1.11404536]
[1749504509515,1.49938172,665.2,664.75,1.11404536]
[1749504509713,1.66908284,665.28,664.75,1.11404536]
[1749504509915,1.0079693,665.28,664.75,1.11404536]
[1749504510115,1.0079693,665.28,664.76,1.11404536]
[1749504510317,1.17766855,665.28,664.76,1.11404536]
[1749504510617,3.91409091,665.29,664.76,1.11404536]
[1749504510818,2.67709091,665.28,664.76,1.11404536]
[1749504511019,2.668773,665.27,664.78,1.11404536]
[1749504511217,2.17726599,665.26,664.77,1.11404536]
[1749504511421,1.00664081,665.25,664.77,1.11404536]
[1749504511616,0.49151381,665.28,664.77,1.11404536]
[1749504511820,2.73515261,665.29,664.77,1.11404536]
[1749504512016,2.66877651,665.28,664.77,1.11404536]
[1749504512216,1.49815261,665.27,664.77,1.11404536]
[1749504512421,0.49151313,665.27,664.78,1.11404536]
[1749504512617,0.49151313,665.27,664.77,1.11404536]
[1749504513018,0.49154344,665.27,664.77,1.11404536]
[1749504513321,0.49154344,665.27,664.65,1.48539382]
[1749504513322,0.49154344,665.28,664.76,1.11404536]
[1749504513519,2.66791493,665.28,664.76,1.11404536]
[1749504513722,0.49154344,665.27,664.76,1.11404536]
[1749504513917,2.66791493,665.27,664.76,1.11404536]
[1749504514126,2.66791493,665.26,664.76,1.11404536]
[1749504514324,2.66828747,665.25,664.77,1.11404536]
[1749504514620,2.66828747,665.24,664.76,1.11404536]
[1749504514818,2.66733773,665.23,664.76,1.11404536]
[1749504515017,1.66243513,665.22,664.76,1.11404536]
[1749504515223,2.66733768,665.29,664.76,1.11404536]